bitfinex-derivatives/quotes_SOLF0:USTF0_20250419
["timestamp","ask_amount","ask_price","bid_price","bid_amount"]
[1745077525968,0.05229694,139.12,139.11,7.1888]
[1745077530670,8.9492389,139.12,139.07,26.0]
[1745077530872,8.89694196,139.1,139.07,26.0]
[1745077531070,8.89694196,139.1,139.05,8.89694196]
[1745077532071,8.89694196,139.1,139.09,7.1899]
[1745077534178,8.89694196,139.1,139.08,7.1902]
[1745077534774,8.89694196,139.1,139.09,7.1901]
[1745077535880,8.89694196,139.1,139.03,7.7554]
[1745077535881,8.89694196,139.1,139.03,3.7687]
[1745077536080,8.89694196,139.1,139.01,26.0]
[1745077536081,8.89694196,139.06,139.01,26.0]
[1745077536482,8.89694196,139.06,139.04,7.1925]
[1745077536783,8.89694196,139.06,139.01,26.0]
[1745077536982,8.89694196,139.06,139.05,7.1922]
[1745077537185,8.9453332,139.06,139.05,7.1922]
[1745077537386,0.04839124,139.06,139.05,7.1922]
[1745077539386,26.0,139.09,139.08,7.1906]
[1745077539586,8.89694196,139.11,139.06,8.89694196]
[1745077540086,8.89694196,139.11,139.1,7.1896]
[1745077544187,8.89694196,139.11,139.09,7.24118216]
[1745077544388,8.89694196,139.11,139.09,0.05128216]
[1745077544888,7.19,139.1,139.07,7.1909]
[1745077545088,8.89694196,139.08,139.07,7.1909]
[1745077559692,0.0553208,139.09,139.08,7.1906]
[1745077560799,34.89694196,139.12,139.11,7.1891]
[1745077561201,26.0,139.12,139.11,7.1891]
[1745077561408,8.89694196,139.14,139.12,7.1881]
[1745077561900,8.89694196,139.14,139.08,8.89694196]
[1745077562099,8.89694196,139.14,139.12,0.04651029]
[1745077563305,8.89694196,139.14,139.13,7.188]
[1745077563902,8.89694196,139.14,139.12,7.23481029]
[1745077565205,8.89694196,139.14,139.12,0.04651029]
[1745077565706,8.9491737,139.14,139.09,7.1901]
[1745077566004,8.89694196,139.1,139.09,7.1901]
[1745077566808,8.89694196,139.1,139.08,7.1904]
[1745077567903,8.89694196,139.1,139.09,7.1901]
[1745077570707,0.04558685,139.11,139.1,7.1896]
[1745077575107,0.04558685,139.11,139.09,7.1898]
[1745077575409,8.89694196,139.1,139.09,7.1898]
[1745077576711,0.04558685,139.11,139.1,7.1896]
[1745077580108,26.0,139.14,139.13,7.188]
[1745077581314,26.0,139.14,139.06,8.89694196]
[1745077581507,8.89694196,139.1,139.06,8.89694196]
[1745077581810,8.89694196,139.1,139.09,7.1901]
[1745077582012,8.89694196,139.1,139.09,7.23550014]
[1745077590114,8.89694196,139.1,139.09,0.04540014]
[1745077590314,34.87694196,139.1,139.09,0.04540014]
[1745077590512,42.06654196,139.1,139.09,0.04540014]
[1745077591927,34.87694196,139.1,139.02,25.98]
[1745077592114,8.89694196,139.06,139.02,25.98]
[1745077592519,8.89694196,139.06,139.05,7.1922]
[1745077594519,8.89694196,139.08,139.06,7.1913]
[1745077595822,16.08764196,139.08,139.06,7.1913]
[1745077596321,16.08764196,139.08,139.05,7.192]
[1745077596523,8.89694196,139.06,139.05,7.192]
[1745077597520,8.89694196,139.06,139.04,7.1924]
[1745077597721,34.87694196,139.06,139.0,3.7662]
[1745077598022,8.89694196,139.04,138.99,29.9833]
[1745077598230,8.89694196,139.04,139.02,7.1935]
[1745077598521,7.1924,139.05,139.02,7.1935]
[1745077598924,8.89694196,139.03,139.02,7.1935]
[1745077600727,8.89694196,139.03,139.01,7.194]
[1745077601321,8.89694196,139.03,139.01,0.0539262]
[1745077601322,16.09024196,139.03,139.01,0.0539262]
[1745077602217,7.1937,139.02,139.01,0.0539262]
[1745077602825,16.09034196,139.03,139.01,0.0539262]
[1745077604727,16.09034196,139.03,139.01,7.2481262]
[1745077605025,7.1937,139.02,139.01,0.0539262]
[1745077605226,33.1737,139.02,139.01,0.0539262]
[1745077606331,25.98,139.02,139.01,0.0539262]
[1745077607132,25.98,139.02,139.01,7.2482262]
[1745077608233,25.98,139.02,138.96,26.0]
[1745077608432,8.89694196,138.99,138.93,38.83164196]
[1745077608632,8.89694196,138.99,138.93,29.9347]
[1745077608933,8.89694196,138.97,138.93,26.0]
[1745077609131,8.89694196,138.97,138.96,7.1965]
[1745077613233,26.05184511,138.98,138.97,7.1963]
[1745077613535,8.89694196,139.03,138.96,8.89694196]
[1745077613733,8.89694196,139.03,139.02,7.1937]
[1745077613935,8.89694196,139.03,138.96,8.89694196]
[1745077614130,8.89694196,139.0,138.96,8.89694196]
[1745077615137,8.89694196,139.0,138.95,37.4847]
[1745077615337,8.89694196,139.0,138.95,30.0314]
[1745077617140,8.89694196,138.98,138.92,34.89694196]
[1745077617440,8.89694196,138.98,138.94,8.89694196]
[1745077617638,34.89694196,139.0,138.94,8.89694196]
[1745077619238,8.89694196,138.98,138.92,34.89694196]
[1745077619435,8.89694196,138.98,138.93,1.32172334]
[1745077619939,8.89694196,138.98,138.92,34.89694196]
[1745077620842,8.89694196,138.98,138.93,1.32171518]
[1745077621440,8.89694196,138.98,138.92,34.89694196]
[1745077621641,8.89694196,138.98,138.93,1.32171355]
[1745077622239,26.0,139.0,138.94,8.89694196]
[1745077622443,8.89694196,139.02,138.96,8.89694196]
[1745077622638,8.89694196,139.02,138.96,34.89694196]
[1745077622941,8.89694196,139.03,138.98,8.89694196]
[1745077623839,8.89694196,139.01,138.96,26.0]
[1745077624043,8.89694196,138.99,138.96,26.0]
[1745077624240,8.89694196,139.0,138.96,26.0]
[1745077624441,8.89694196,139.02,138.96,34.89694196]
[1745077625542,0.05025053,139.0,138.96,34.89694196]
[1745077626041,0.05025053,139.0,138.97,0.04821962]
[1745077627441,8.89694196,138.98,138.97,0.04821962]
[1745077627643,8.89694196,138.98,138.85,26.0]
[1745077627846,8.89694196,138.9,138.86,1.32229887]
[1745077628145,8.89694196,138.91,138.86,1.32229887]
[1745077628347,8.89694196,138.87,138.86,1.32229887]
[1745077628539,8.89694196,138.89,138.85,26.0]
[1745077628738,8.89694196,138.89,138.84,11.724]
[1745077628947,0.05293273,138.88,138.84,11.724]
[1745077629245,0.05293273,138.88,138.87,7.2015]
[1745077630550,3.273e-05,138.88,138.87,7.2015]
[1745077633949,3.273e-05,138.88,138.87,34.52383947]
[1745077634452,3.273e-05,138.88,138.87,8.52383947]
[1745077634647,3.273e-05,138.88,138.87,7.2015]
[1745077635856,3.273e-05,138.88,138.81,3.9263]
[1745077636354,7.20103273,138.88,138.81,3.9263]
[1745077637051,7.2016,138.87,138.79,4.0864]
[1745077637245,13.92359942,138.87,138.79,4.0864]
[1745077637652,7.2029,138.85,138.79,4.0864]
[1745077637852,33.2029,138.85,138.79,4.0864]
[1745077639653,0.04877686,138.83,138.79,4.0864]
[1745077640553,0.04877686,138.83,138.77,29.7985]
[1745077642455,0.04877686,138.83,138.78,13.92359942]
[1745077643255,0.04877686,138.83,138.79,0.04562017]
[1745077644757,0.04877686,138.83,138.79,1.36873085]
[1745077644953,26.06877686,138.83,138.79,0.04562017]
[1745077645258,0.04877686,138.83,138.79,0.04562017]
[1745077650053,26.06877686,138.83,138.79,0.04562017]
[1745077652064,33.27267686,138.83,138.79,0.04562017]
[1745077653562,7.2041,138.82,138.79,0.04562017]
[1745077656262,7.2051,138.8,138.73,39.94359942]
[1745077656561,26.02,138.79,138.73,39.94359942]
[1745077656755,33.2257,138.79,138.73,26.02]
[1745077657056,26.02,138.79,138.73,26.02]
[1745077657262,8.92777631,138.75,138.64,361.0]
[1745077657505,26.02,138.74,138.71,8.92777631]
[1745077658563,26.07175425,138.74,138.71,8.92777631]
[1745077659258,26.07175425,138.74,138.64,387.02]
[1745077659464,0.05175425,138.74,138.68,13.95653978]
[1745077659662,26.07175425,138.74,138.69,1.32402002]
[1745077659862,26.02,138.74,138.7,13.95653978]
[1745077660262,0.05497075,138.72,138.68,26.06946331]
[1745077661162,26.04,138.82,138.7,13.95653978]
[1745077661462,26.04,138.82,138.72,13.95653978]
[1745077661666,7.2049,138.81,138.76,7.2071]
[1745077661966,26.04,138.82,138.76,7.2071]
[1745077662163,26.04,138.82,138.72,39.99653978]
[1745077662462,26.04,138.82,138.74,13.95653978]
[1745077662663,26.04,138.82,138.79,7.2053]
[1745077663766,26.04,138.82,138.8,7.2051]
[1745077665363,26.04,138.82,138.73,4.0136]
[1745077671377,26.04,138.82,138.72,39.99653978]
[1745077671378,13.95653978,138.81,138.72,26.04]
[1745077671776,13.95653978,138.79,138.72,26.04]
[1745077672076,26.44,138.78,138.69,34.0957]
[1745077672280,13.95653978,138.77,138.69,26.44]
[1745077672478,25.83123978,138.77,138.69,26.44]
[1745077673276,25.83123978,138.77,138.66,13.95653978]
[1745077673575,25.83123978,138.77,138.66,40.39653978]
[1745077673777,7.2083,138.74,138.66,40.39653978]
[1745077673974,33.6483,138.74,138.66,40.39653978]
[1745077674174,26.44,138.74,138.64,13.95653978]
[1745077674375,26.44,138.74,138.64,17.87673978]
[1745077674877,26.44,138.74,138.65,27.76445335]
[1745077675072,26.44,138.74,138.65,26.44]
[1745077675474,33.6487,138.74,138.65,26.44]
[1745077676381,21.16543978,138.73,138.65,26.44]
[1745077676980,0.04809882,138.71,138.68,0.05297547]
[1745077681281,8.98591852,138.71,138.68,0.05297547]
[1745077682586,0.04809882,138.71,138.68,0.05297547]
[1745077683786,8.98591852,138.71,138.68,0.05297547]
[1745077684086,0.04809882,138.71,138.68,0.05297547]
[1745077687788,8.9378197,138.7,138.68,0.05297547]
[1745077688490,35.3978197,138.7,138.62,35.3978197]
[1745077688696,8.9378197,138.67,138.62,35.3978197]
[1745077688891,8.9378197,138.67,138.62,8.9378197]
[1745077689190,8.9378197,138.63,138.58,12.7880197]
[1745077689385,8.9378197,138.65,138.6,8.9378197]
[1745077689586,8.9378197,138.65,138.58,8.9378197]
[1745077689993,0.05137958,138.62,138.58,8.9378197]
[1745077690192,0.05137958,138.62,138.57,8.9378197]
[1745077690494,8.9378197,138.61,138.56,35.3978197]
[1745077690691,35.3978197,138.61,138.56,8.9378197]
[1745077691291,26.46,138.61,138.54,17.83542456]
[1745077692402,14.4161,138.75,138.56,13.98522456]
[1745077692600,48.39052456,138.69,138.58,13.98522456]
[1745077692895,13.98522456,138.67,138.57,26.46]
[1745077693296,13.98522456,138.65,138.55,7.7418]
[1745077693497,26.46,138.64,138.56,1.32517255]
[1745077693697,30.4283,138.64,138.56,15.31039711]
[1745077693897,30.4283,138.64,138.56,13.98522456]
[1745077694091,30.4283,138.64,138.55,7.7418]
[1745077694398,30.4283,138.64,138.56,1.3252042]
[1745077694693,30.4283,138.64,138.55,7.7418]
[1745077694889,21.57752456,138.63,138.54,3.8502]
[1745077695089,13.98522456,138.61,138.5,13.98522456]
[1745077695301,13.98522456,138.59,138.51,1.32565677]
[1745077695500,26.56,138.6,138.51,15.31088133]
[1745077695702,26.56,138.6,138.53,13.98522456]
[1745077695894,26.56,138.6,138.51,40.54522456]
[1745077696289,26.56,138.6,138.53,13.98522456]
[1745077696694,7.5923,138.63,138.54,0.05513074]
[1745077696999,34.1523,138.63,138.55,40.54522456]
[1745077697202,0.05216115,138.6,138.55,40.54522456]
[1745077697699,0.05216115,138.6,138.58,0.04903094]
[1745077699200,0.05216115,138.6,138.52,40.54522456]
[1745077701201,0.05216115,138.6,138.54,13.98522456]
[1745077701401,26.56,138.59,138.5,4.0885]
[1745077702000,26.56,138.59,138.51,1.32575344]
[1745077702200,26.56,138.59,138.5,18.07372456]
[1745077702500,0.04898664,138.56,138.51,1.3257431]
[1745077703199,26.58,138.62,138.54,13.98522456]
[1745077703401,26.58,138.62,138.54,40.56522456]
[1745077703600,26.58,138.62,138.56,13.98522456]
[1745077703997,7.5923,138.63,138.56,13.98522456]
[1745077704500,26.58,138.65,138.6,13.98522456]
[1745077704895,0.04752539,138.61,138.6,13.98522456]
[1745077705504,26.58,138.65,138.59,26.58]
[1745077710007,26.58,138.65,138.6,13.98522456]
[1745077711211,13.98522456,138.64,138.51,26.56]
[1745077711425,21.19902456,138.64,138.53,13.98522456]
[1745077711606,8.027,138.63,138.53,13.98522456]
[1745077711809,8.027,138.63,138.54,1.3253645]
[1745077712004,8.027,138.63,138.55,26.56]
[1745077712314,15.241,138.63,138.55,26.56]
[1745077712514,8.027,138.63,138.55,26.56]
[1745077713112,26.56,138.65,138.56,15.3105301]
[1745077713323,26.56,138.65,138.56,18.01902456]
[1745077714212,26.56,138.65,138.57,1.32516805]
[1745077715416,26.56,138.65,138.55,40.54522456]
[1745077715610,26.56,138.65,138.57,13.98522456]
[1745077716217,22.06062456,138.68,138.57,13.98522456]
[1745077716414,7.2125,138.66,138.57,13.98522456]
[1745077716614,0.04912305,138.62,138.6,0.05031314]
[1745077718112,40.59434761,138.62,138.51,40.54522456]
[1745077718416,47.80904761,138.62,138.52,1.32557894]
[1745077718616,47.75992456,138.62,138.52,1.32557894]
[1745077719319,7.2152,138.61,138.52,1.32557894]
[1745077719617,0.04635224,138.58,138.51,26.56]
[1745077720119,0.04635224,138.58,138.51,40.54522456]
[1745077720417,0.04635224,138.58,138.52,1.32565795]
[1745077720809,0.04635224,138.58,138.53,13.98522456]
[1745077721413,0.04635224,138.58,138.51,40.54522456]
[1745077721619,0.04635224,138.58,138.52,1.32561584]
[1745077722620,0.04635224,138.58,138.53,13.98522456]
[1745077722822,0.04635224,138.58,138.54,1.32542838]
[1745077723020,0.04635224,138.58,138.55,26.58]
[1745077724118,0.04635224,138.58,138.55,26.62883463]
[1745077726927,26.90635224,138.58,138.48,26.86]
[1745077727117,26.90635224,138.58,138.49,15.31103215]
[1745077727318,26.90635224,138.58,138.5,1.32580759]
[1745077727319,26.86,138.58,138.5,1.32580759]
[1745077727526,26.86,138.58,138.49,13.98522456]
[1745077727728,26.86,138.58,138.5,1.32580784]
[1745077728424,0.05518736,138.55,138.48,26.86]
[1745077730631,26.86,138.54,138.48,26.86]
[1745077736143,0.05518736,138.55,138.49,15.31119616]
[1745077736441,8.736e-05,138.55,138.54,7.2187]
[1745077737039,8.736e-05,138.55,138.54,21.20392456]
[1745077737241,8.736e-05,138.55,138.54,7.2187]
[1745077738441,8.736e-05,138.55,138.53,0.04653127]
[1745077739144,8.736e-05,138.55,138.53,7.26543127]
[1745077739340,8.736e-05,138.55,138.47,30.7259]
[1745077739541,8.736e-05,138.55,138.47,26.86]
[1745077742346,8.736e-05,138.55,138.48,13.98522456]
[1745077742546,8.736e-05,138.55,138.49,1.32601062]
[1745077742747,8.736e-05,138.55,138.5,13.98522456]
[1745077742953,8.736e-05,138.55,138.51,26.86]
[1745077743247,8.736e-05,138.55,138.52,13.98522456]
[1745077743447,8.736e-05,138.55,138.52,21.89252456]
[1745077744845,8.736e-05,138.55,138.52,25.88682456]
[1745077745348,8.736e-05,138.55,138.54,13.98522456]
[1745077745551,30.8402,138.63,138.54,15.31087583]
[1745077745751,34.0726,138.66,138.57,13.98522456]
[1745077745949,38.1558,138.66,138.57,13.98522456]
[1745077746251,38.1556,138.66,138.57,13.98522456]
[1745077746846,0.05471373,138.63,138.57,13.98522456]
[1745077749048,0.05471373,138.63,138.58,12.93320764]
[1745077749247,0.05471373,138.63,138.59,26.86]
[1745077753460,0.05471373,138.63,138.59,40.84522456]
[1745077756157,0.05471373,138.63,138.61,13.98522456]
[1745077756354,3.6963,138.7,138.61,13.98522456]
[1745077757554,0.05325066,138.67,138.61,13.98522456]
[1745077759156,0.05325066,138.67,138.59,40.84522456]
[1745077759358,0.05325066,138.67,138.6,1.32493914]
[1745077759659,0.05325066,138.67,138.59,26.86]
[1745077760058,14.03847522,138.67,138.59,26.86]
[1745077760662,14.03847522,138.67,138.58,11.6081]
[1745077760858,0.05325066,138.67,138.59,40.70522456]
[1745077761162,3.6963,138.7,138.61,13.98522456]
[1745077761560,0.04557044,138.64,138.61,13.98522456]
[1745077761862,3.6963,138.7,138.61,13.98522456]
[1745077762362,0.04671188,138.64,138.61,13.98522456]
[1745077762560,3.6963,138.7,138.63,13.98522456]
[1745077762759,3.6963,138.7,138.64,26.72]
[1745077764164,0.04891532,138.68,138.64,26.72]
[1745077764462,0.04891532,138.68,138.66,0.05037251]
[1745077771269,0.04891532,138.68,138.67,7.2119]
[1745077775068,0.04891532,138.68,138.66,0.05037251]
[1745077775266,40.68522456,138.67,138.59,1.32500588]
[1745077775568,40.68522456,138.67,138.59,5.23310588]
[1745077775765,40.68522456,138.67,138.6,26.7]
[1745077775970,26.7,138.67,138.6,26.7]
[1745077776470,0.05009534,138.65,138.6,26.7]
[1745077777878,0.05009534,138.65,138.6,40.68522456]
[1745077778065,75.98417,138.71,138.62,13.98522456]
[1745077778268,75.98417,138.71,138.63,4.0278]
[1745077778564,83.19407,138.71,138.63,4.0278]
[1745077779274,83.19407,138.71,138.64,26.7]
[1745077779475,83.19407,138.71,138.66,0.0495389]
[1745077780469,75.98417,138.71,138.66,0.0495389]
[1745077781269,83.19427,138.71,138.66,0.0495389]
[1745077781674,0.04596058,138.7,138.66,0.0495389]
[1745077781873,0.04596058,138.7,138.66,14.03476346]
[1745077782270,26.7,138.76,138.68,13.98522456]
[1745077782474,40.68522456,138.76,138.69,26.7]
[1745077782875,7.208,138.75,138.69,26.7]
[1745077783175,40.68522456,138.76,138.69,26.7]
[1745077783375,7.2089,138.73,138.69,26.7]
[1745077783676,13.98522456,138.72,138.71,0.04789726]
[1745077783876,47.89472456,138.72,138.66,26.7]
[1745077784076,40.68522456,138.72,138.66,26.7]
[1745077784375,7.2111,138.69,138.62,26.7]
[1745077786180,21.19582456,138.7,138.62,26.7]
[1745077786576,13.98522456,138.7,138.62,26.7]
[1745077786777,21.19582456,138.7,138.65,0.04797772]
[1745077787882,0.04820842,138.69,138.65,0.04797772]
[1745077789210,7.25910842,138.69,138.65,0.04797772]
[1745077789852,0.04820842,138.69,138.65,0.04797772]
[1745077790637,7.2118,138.68,138.65,0.04797772]
[1745077791923,7.25930842,138.69,138.65,0.04797772]
[1745077793031,7.2116,138.68,138.65,0.04797772]
[1745077794320,7.2116,138.68,138.65,7.26067772]
[1745077795717,7.25930842,138.69,138.66,7.2124]
[1745077796120,7.25930842,138.69,138.65,7.26067772]
[1745077796424,0.04820842,138.69,138.65,0.04797772]
[1745077797619,0.04820842,138.69,138.67,7.2116]
[1745077798518,0.04820842,138.69,138.68,7.2114]
[1745077798823,0.04820842,138.69,138.65,0.04797772]
[1745077799439,13.98522456,138.68,138.65,0.04797772]
[1745077799917,13.98522456,138.68,138.65,7.26067772]
[1745077800116,7.25940842,138.69,138.65,7.26067772]
[1745077800312,0.04820842,138.69,138.65,7.26067772]
[1745077800525,7.2115,138.68,138.65,7.26067772]
[1745077800918,4.69750554,138.67,138.65,0.04797772]
[1745077801111,11.90990554,138.66,138.65,0.04797772]
[1745077801319,4.69750554,138.66,138.65,0.04797772]
[1745077801522,4.69750554,138.66,138.65,7.26087772]
[1745077801721,4.69750554,138.66,138.65,0.04797772]
[1745077802508,4.69658097,138.66,138.65,0.04797772]
[1745077803600,4.69658097,138.66,138.65,7.26087772]
[1745077806600,0.04820842,138.69,138.66,7.212]
[1745077806801,0.04820842,138.69,138.65,0.04797772]
[1745077807100,0.04820842,138.69,138.67,7.2116]
[1745077807501,0.04820842,138.69,138.65,0.04797772]
[1745077807801,0.04820842,138.69,138.68,7.2114]
[1745077808200,0.04820842,138.69,138.65,0.04797772]
[1745077808898,0.04820842,138.69,138.68,7.2114]
[1745077812911,1.724e-05,138.69,138.68,7.2114]
[1745077813209,44.47572456,138.74,138.73,7.2088]
[1745077813804,26.6,138.74,138.73,7.2088]
[1745077814005,44.48282456,138.77,138.75,7.2074]
[1745077814405,44.48282456,138.77,138.74,7.208]
[1745077814605,13.98522456,138.75,138.74,7.208]
[1745077814807,13.98522456,138.75,138.72,0.05518882]
[1745077815603,51.68982456,138.77,138.74,7.2083]
[1745077816806,51.68982456,138.77,138.75,7.2077]
[1745077817109,44.48282456,138.77,138.72,0.05518882]
[1745077817412,26.6,138.77,138.72,0.05518882]
[1745077818014,26.6,138.77,138.76,7.2072]
[1745077818215,21.95912456,138.78,138.72,0.05518882]
[1745077818414,21.95912456,138.78,138.71,26.52]
[1745077818716,7.9739,138.78,138.77,7.2067]
[1745077819714,21.95912456,138.78,138.74,0.05061551]
[1745077820015,13.98522456,138.76,138.68,26.52]
[1745077820211,13.98522456,138.74,138.68,26.52]
[1745077821412,3.8675,138.75,138.73,7.2084]
[1745077823315,3.8675,138.75,138.68,26.52]
[1745077824113,40.50522456,138.76,138.68,26.52]
[1745077824714,26.52,138.76,138.68,26.52]
[1745077824915,4.56198107,138.75,138.74,7.208]
[1745077826518,4.55913606,138.75,138.74,7.208]
[1745077827017,4.55913606,138.75,138.73,7.2085]
[1745077827218,4.55913606,138.74,138.73,7.2085]
[1745077827519,25.75296062,138.74,138.71,7.2097]
[1745077827717,4.55913606,138.73,138.71,7.2097]
[1745077827918,4.55913606,138.72,138.71,7.2097]
[1745077828316,4.5584359,138.72,138.71,7.2097]
[1745077830118,13.98522456,138.74,138.72,7.2089]
[1745077830318,4.56054716,138.73,138.72,7.2089]
[1745077833720,0.04742711,138.74,138.73,7.2088]
[1745077833920,4.60866509,138.74,138.73,7.2088]
[1745077835618,4.60966943,138.74,138.73,7.2088]
[1745077837222,4.60966943,138.74,138.72,7.2092]
[1745077837421,4.56224232,138.73,138.72,7.2092]
[1745077841329,4.56611286,138.73,138.72,7.2092]
[1745077841524,4.56607224,138.73,138.72,7.2092]
[1745077843226,0.04742711,138.74,138.73,7.2088]
[1745077843431,0.04742711,138.74,138.72,26.52]
[1745077843432,26.52,138.79,138.72,26.52]
[1745077843627,4.56849875,138.78,138.77,7.2062]
[1745077844430,37.9027,138.83,138.78,7.2061]
[1745077844621,4.5699491,138.82,138.78,7.2061]
[1745077844828,11.7748491,138.81,138.78,7.2061]
[1745077845027,4.5699491,138.8,138.78,7.2061]
[1745077845227,4.5699491,138.79,138.78,7.2061]
[1745077845732,4.5699491,138.79,138.78,7.26092114]
[1745077846433,33.9887,138.83,138.82,7.2041]
[1745077846732,38.5586522,138.83,138.82,7.2041]
[1745077847234,31.0899522,138.83,138.82,7.2041]
[1745077847427,31.0899522,138.83,138.81,7.25642639]
[1745077847731,4.5699522,138.82,138.81,0.05202639]
[1745077848426,11.7740522,138.82,138.76,26.52]
[1745077848626,4.5699522,138.81,138.78,7.2059]
[1745077848825,4.5699522,138.8,138.78,7.2059]
[1745077849030,4.5699522,138.79,138.78,7.2059]
[1745077853240,26.52,138.83,138.81,7.2046]
[1745077853439,4.56964829,138.82,138.76,26.52]
[1745077853737,4.56964829,138.81,138.76,26.52]
[1745077853938,4.56964829,138.8,138.76,26.52]
[1745077854238,4.56964829,138.79,138.76,26.52]
[1745077854436,7.2044,138.82,138.79,7.2053]
[1745077854637,4.56881571,138.81,138.79,7.2053]
[1745077854836,4.56881571,138.8,138.79,7.2053]
[1745077855942,4.56881571,138.8,138.78,7.2059]
[1745077856141,4.56881571,138.79,138.78,7.2059]
[1745077856440,4.56722973,138.79,138.78,7.2059]
[1745077860550,4.56479336,138.79,138.78,7.2059]
[1745077862551,4.5632359,138.79,138.76,7.207]
[1745077862851,4.5632359,138.78,138.73,27.41958]
[1745077863150,4.5632359,138.77,138.75,7.2074]
[1745077863349,7.2064,138.78,138.75,7.2074]
[1745077863551,4.56179847,138.77,138.75,7.2074]
[1745077863753,7.2064,138.78,138.75,7.2074]
[1745077863952,4.56156961,138.77,138.75,7.2074]
[1745077864152,7.2064,138.78,138.75,7.2074]
[1745077864451,4.56118417,138.77,138.75,7.2074]
[1745077864652,7.2064,138.78,138.75,7.2074]
[1745077864854,4.56167041,138.77,138.75,7.2074]
[1745077865056,4.56122146,138.76,138.73,8.28808]
[1745077865247,4.56122146,138.75,138.73,8.28808]
[1745077865556,4.5611042,138.74,138.73,1.07958]
[1745077866350,4.5611042,138.74,138.73,8.28838]
[1745077869457,4.5611042,138.74,138.73,1.07958]
[1745077869855,11.7694042,138.74,138.73,1.07958]
[1745077870755,4.5611042,138.74,138.73,1.07958]
[1745077872260,11.7694042,138.74,138.73,1.07958]
[1745077872759,4.5611042,138.74,138.73,1.07958]
[1745077873058,4.5611042,138.74,138.73,8.28838]
[1745077873858,4.55867001,138.74,138.73,8.28838]
[1745077877158,4.55867001,138.74,138.73,1.07958]
[1745077877664,4.55867001,138.74,138.73,8.28838]
[1745077878159,4.55865957,138.74,138.73,1.07958]
[1745077879267,4.55865957,138.74,138.73,8.28838]
[1745077880765,0.04888443,138.75,138.74,7.2083]
[1745077880969,4.60784535,138.75,138.74,7.2083]
[1745077882670,4.60784535,138.75,138.73,8.28818]
[1745077882870,4.55896092,138.74,138.73,8.28818]
[1745077883168,4.55896092,138.74,138.73,1.07958]
[1745077884269,11.76726092,138.74,138.73,1.07958]
[1745077884770,4.55896092,138.74,138.73,1.07958]
[1745077885470,11.76654795,138.74,138.73,1.07958]
[1745077885670,4.55824795,138.74,138.73,1.07958]
[1745077887070,4.55824795,138.74,138.73,8.28838]
[1745077887872,0.04888443,138.75,138.74,7.2083]
[1745077888068,4.60813441,138.75,138.74,7.2083]
[1745077889174,0.04888443,138.75,138.74,7.2083]
[1745077890473,4.60817276,138.75,138.74,7.2083]
[1745077891274,0.04888443,138.75,138.74,7.2083]
[1745077896276,26.18,138.81,138.79,7.2054]
[1745077896483,4.5608179,138.8,138.79,7.2054]
[1745077896886,4.56118535,138.8,138.75,26.18]
[1745077897186,4.56118449,138.79,138.75,26.18]
[1745077897385,26.18,138.84,138.75,26.18]
[1745077897586,26.18,138.84,138.82,7.2038]
[1745077898486,26.18,138.84,138.82,7.25238875]
[1745077898982,26.18,138.84,138.83,7.2036]
[1745077899888,29.9471,138.87,138.84,7.2029]
[1745077900387,29.9471,138.87,138.82,0.04858875]
[1745077900791,29.9471,138.87,138.85,7.2023]
[1745077901389,37.1489,138.87,138.84,7.2028]
[1745077902989,29.9471,138.87,138.82,0.04858875]
[1745077903486,7.2028,138.85,138.82,7.25238875]
[1745077903889,29.9471,138.87,138.82,0.04858875]
[1745077904090,26.18,138.87,138.82,0.04858875]
[1745077904489,26.18,138.87,138.85,7.2022]
[1745077904791,26.18,138.87,138.82,0.04858875]
[1745077905090,26.18,138.87,138.86,7.202]
[1745077907492,604.0801,138.9,138.87,7.2014]
[1745077907693,26.16,138.9,138.85,0.04913115]
[1745077907890,33.36,138.9,138.85,0.04913115]
[1745077908089,33.36,138.9,138.87,7.2014]
[1745077908491,26.16,138.9,138.85,0.04913115]
[1745077909014,26.16,138.9,138.88,7.2007]
[1745077909329,4.44009114,138.89,138.88,7.2007]
[1745077910327,26.16,138.9,138.88,7.2007]
[1745077911058,570.46,138.97,138.87,26.16]
[1745077911342,41.86238286,138.96,138.87,26.16]
[1745077911533,7.1982,138.94,138.9,7.1996]